bitfinex/quotes_ETHUSD_20240820
["timestamp","ask_amount","ask_price","bid_price","bid_amount"]
[1724117053255,6.75758,2661.3,2660.6,0.97753]
[1724117053457,3.75758,2661.3,2661.2,0.09287098]
[1724117053655,3.75772,2661.2,2660.5,9.7753]
[1724117055781,3.75757,2661.3,2660.5,9.7753]
[1724117056955,6.10931,2661.4,2660.5,9.7753]
[1724117057164,3.0,2661.3,2660.5,9.7753]
[1724117057343,3.0,2661.3,2660.6,0.97753]
[1724117057543,6.75757,2661.3,2660.6,0.97753]
[1724117058483,3.75773,2661.2,2660.6,0.97753]
[1724117058671,3.75773,2661.2,2660.5,7.38]
[1724117059481,6.75756,2661.3,2660.5,7.38]
[1724117060372,3.0,2661.3,2660.5,7.38]
[1724117060709,6.75756,2661.3,2660.5,7.38]
[1724117060999,3.75781,2661.2,2660.5,7.38]
[1724117061165,3.75781,2661.2,2660.5,8.35601]
[1724117062190,7.51562,2661.2,2660.5,8.35601]
[1724117062391,3.75794,2661.1,2660.5,7.38]
[1724117062821,2.3789,2660.9,2660.5,7.38]
[1724117063117,3.75833,2660.8,2660.0,9.8095]
[1724117063287,3.75833,2660.8,2660.1,0.98095]
[1724117063853,3.75842,2660.7,2660.1,0.98095]
[1724117064253,2.3789,2660.9,2660.1,0.98095]
[1724117064459,5.3789,2660.9,2660.1,0.98095]
[1724117065524,5.3789,2660.9,2660.0,9.8095]
[1724117065525,3.75864,2660.6,2660.0,7.38]
[1724117065801,3.75894,2660.4,2660.0,7.38]
[1724117066004,3.75894,2660.4,2659.7,2.4191]
[1724117066999,6.14238,2660.3,2659.6,7.38]
[1724117067190,3.0,2660.5,2659.7,2.2541]
[1724117068085,5.3834,2660.6,2659.7,2.2541]
[1724117068269,9.14195,2660.6,2659.7,2.2541]
[1724117068473,5.3834,2660.6,2659.8,0.09379572]
[1724117068966,5.3834,2660.6,2659.9,0.55]
[1724117069181,3.0,2660.6,2660.0,2.34779337]
[1724117069382,3.0,2660.6,2660.1,0.83977934]
[1724117069567,9.14149,2661.0,2660.2,0.09359104]
[1724117069780,5.3834,2661.0,2660.2,0.09359104]
[1724117069982,3.75785,2661.1,2660.4,2.2541]
[1724117070301,3.75785,2661.1,2660.5,0.09343757]
[1724117070592,2.3834,2661.0,2660.2,3.08543704]
[1724117070958,3.75785,2661.1,2660.3,0.64353988]
[1724117071276,3.0,2661.0,2660.4,0.37289769]
[1724117071476,3.0,2661.1,2660.4,0.37289769]
[1724117071659,3.0,2661.1,2660.5,0.09343757]
[1724117072495,6.02496,2661.3,2660.5,0.09343757]
[1724117072496,3.0,2661.2,2660.5,0.09343757]
[1724117072705,2.2765,2661.0,2660.5,0.09343757]
[1724117073002,2.2765,2661.0,2660.2,3.08543704]
[1724117073003,5.2765,2661.0,2660.2,3.08543704]
[1724117073202,9.03449,2661.0,2660.3,0.09353988]
[1724117074263,5.2765,2661.0,2660.3,0.09353988]
[1724117074889,9.0345,2661.0,2660.3,0.09353988]
[1724117075098,9.0345,2661.0,2660.3,1.17841551]
[1724117076083,3.0,2661.0,2660.4,2.3386]
[1724117076406,3.0,2661.2,2660.5,0.0935158]
[1724117077283,9.12492,2661.2,2660.5,0.0935158]
[1724117077603,10.413173,2661.2,2660.5,0.0935158]
[1724117078181,9.12492,2661.2,2660.5,0.0935158]
[1724117079321,3.0,2661.2,2660.5,0.0935158]
[1724117081487,6.7577,2661.2,2660.5,0.0935158]
[1724117086423,3.0,2661.2,2660.5,0.0935158]
[1724117086623,6.75772,2661.2,2660.5,0.0935158]
[1724117086830,3.0,2661.2,2660.5,0.44521494]
[1724117087490,6.75771,2661.2,2660.5,0.44521494]
[1724117089100,3.0,2661.2,2660.5,0.44521494]
[1724117089302,3.051,2661.8,2660.6,3.033]
[1724117089303,3.75694,2661.8,2660.6,3.033]
[1724117089611,3.75694,2661.8,2660.8,2.483]
[1724117089797,3.75667,2662.0,2661.0,2.483]
[1724117090000,3.75667,2662.0,2661.1,3.20116234]
[1724117090333,3.75667,2662.0,2661.1,2.57602206]
[1724117090497,3.75665,2662.0,2661.2,3.033]
[1724117090705,3.75665,2662.0,2661.2,3.34560221]
[1724117091002,3.75665,2662.0,2661.3,0.09272861]
[1724117091223,6.03787,2662.2,2661.3,0.09272861]
[1724117091426,3.75651,2662.1,2661.4,0.07513895]
[1724117091626,3.75651,2662.1,2661.5,0.09262638]
[1724117092138,6.03758,2662.4,2661.6,2.483]
[1724117092349,3.260838,2662.4,2661.6,2.483]
[1724117092549,3.80867363,2662.4,2661.7,0.09237645]
[1724117092752,3.75666,2662.0,2661.7,0.09237645]
[1724117093099,3.75666,2662.0,2661.3,2.393]
[1724117093298,3.75671,2661.9,2661.8,0.09232535]
[1724117093539,0.751337,2661.9,2661.3,2.393]
[1724117093698,3.75686,2661.8,2661.3,2.393]
[1724117094034,3.75686,2661.8,2661.4,0.09253413]
[1724117096360,6.17754,2662.0,2661.4,0.09253413]
[1724117096522,9.10829,2662.4,2661.5,0.55]
[1724117096850,6.10829,2662.4,2661.7,2.4345]
[1724117097002,3.0,2662.3,2661.7,2.4345]
[1724117097335,3.0,2662.3,2661.8,0.09240789]
[1724117098041,6.75594,2662.5,2661.9,0.09189619]
[1724117098344,3.75601,2662.4,2661.7,9.8145]
[1724117098502,3.0,2662.3,2661.7,9.8145]
[1724117098703,6.75616,2662.3,2661.8,0.09194295]
[1724117098960,6.065,2662.2,2661.8,0.09194295]
[1724117099163,3.7566,2662.0,2661.8,0.09194295]
[1724117099326,3.7566,2662.0,2661.7,7.38]
[1724117099522,3.7566,2662.0,2661.9,0.09182235]
[1724117099745,3.7566,2662.0,2661.8,0.09187345]
[1724117099951,3.7566,2662.0,2661.9,0.09182235]
[1724117100348,6.065,2662.2,2661.7,7.38]
[1724117100565,3.26998356,2662.2,2661.7,7.38]
[1724117100767,3.26998356,2662.2,2661.8,0.09187345]
[1724117100768,3.75671,2661.9,2661.8,0.09187345]
[1724117100927,3.0,2662.1,2661.8,0.09187345]
[1724117101129,3.0,2662.1,2661.4,2.2902]
[1724117101458,3.0,2662.3,2661.5,0.55]
[1724117101656,2.3122,2662.4,2661.7,2.304]
[1724117102157,2.3122,2662.4,2661.8,0.08889718]
[1724117102490,3.0,2662.5,2661.9,0.07513046]
[1724117102720,6.10506,2662.8,2661.9,0.07513046]
[1724117102981,2.3496,2662.8,2662.0,2.57444733]
[1724117103274,3.75531,2662.9,2662.1,0.25744473]
[1724117103446,3.75545,2662.8,2662.1,0.34614097]
[1724117104263,6.10482,2663.0,2662.1,0.42126216]
[1724117104443,3.75533,2662.9,2662.1,0.42126216]
[1724117104661,3.75533,2662.9,2662.2,0.29069622]
[1724117104859,2.3496,2663.0,2662.4,2.3504]
[1724117105059,3.75511,2663.1,2662.4,2.3504]
[1724117105254,3.75518,2663.0,2662.4,2.3504]
[1724117105432,3.75518,2663.0,2662.5,0.08849192]
[1724117105632,2.381,2662.8,2662.5,0.08849192]
[1724117105844,6.13656,2662.8,2662.2,7.38]
[1724117106047,6.75559,2662.7,2662.2,7.38]
[1724117106253,6.75559,2662.7,2662.3,0.08859407]
[1724117106455,6.75559,2662.7,2662.2,7.38]
[1724117106677,6.75559,2662.7,2662.4,0.08854299]
[1724117106891,6.75559,2662.7,2662.2,7.38]
[1724117107093,6.75559,2662.7,2662.5,0.08849192]
[1724117107405,6.75559,2662.7,2662.2,7.38]
[1724117107609,6.75559,2662.7,2662.6,0.08844084]
[1724117107961,6.75559,2662.7,2662.2,7.38]
[1724117108162,6.75559,2662.7,2662.6,0.08844084]
[1724117108464,12.10559,2662.7,2662.6,0.08844084]
[1724117108684,3.75586,2662.6,2662.2,7.38]
[1724117109981,6.75559,2662.7,2662.2,7.38]
[1724117110182,3.0,2662.7,2662.2,7.38]
[1724117110493,3.0,2662.7,2662.2,0.738]
[1724117110680,3.0,2662.7,2661.9,19.64]
[1724117110888,3.0,2662.7,2662.0,0.55]
[1724117112466,3.75606,2662.4,2661.9,19.64]
[1724117112666,3.75606,2662.4,2661.8,2.4716]
[1724117112878,3.75582,2662.6,2661.8,3.485162]
[1724117113198,3.75587,2662.5,2661.8,3.485162]
[1724117113499,3.75587,2662.5,2661.9,0.08865983]
[1724117114294,3.75603,2662.4,2661.9,0.08865983]
[1724117114477,3.75657,2662.0,2661.9,0.08865983]
[1724117114678,6.02007,2662.0,2661.1,2.2941]
[1724117115013,3.0,2661.9,2661.2,0.08592828]
[1724117115214,2.2635,2662.0,2661.1,2.2941]
[1724117115215,9.02007,2662.0,2661.1,2.2941]
[1724117115382,9.02007,2662.0,2661.2,0.22941]
[1724117115584,5.2635,2662.0,2661.2,0.31533828]
[1724117115796,2.4493,2662.4,2661.3,2.3804]
[1724117116138,2.4493,2662.4,2661.5,2.3804]
[1724117116139,3.0,2662.4,2661.5,2.3804]
[1724117116431,3.051,2662.9,2661.6,2.3804]
[1724117116432,3.75544,2662.8,2661.6,2.3804]
[1724117116642,3.75534,2662.9,2661.6,2.46612382]
[1724117117132,2.4493,2663.0,2661.8,2.3804]
[1724117117133,6.20446,2663.0,2661.8,2.3804]
[1724117117289,6.20446,2663.0,2662.0,2.3804]
[1724117117489,6.20446,2663.0,2662.2,2.3804]
[1724117117918,6.20446,2663.0,2662.3,0.08536615]
[1724117118321,3.0,2662.9,2662.3,0.08536615]
[1724117118887,6.75533,2662.9,2662.3,0.08536615]
[1724117120533,3.0,2662.9,2662.3,0.08536615]
[1724117120862,6.19406,2663.5,2662.5,2.3033]
[1724117120999,6.19406,2663.5,2662.6,0.0751015]
[1724117121201,6.19406,2663.5,2662.8,2.3033]
[1724117121514,6.19406,2663.5,2662.9,0.08505973]
[1724117122287,2.4396,2663.5,2662.9,0.08505973]
[1724117122652,3.0,2663.5,2662.9,0.08505973]
[1724117122981,3.0,2663.5,2662.9,0.3238957]
[1724117123531,3.0,2663.5,2662.9,0.08505973]
[1724117123833,3.75469,2663.4,2662.9,0.08505973]
[1724117124060,3.0,2663.3,2662.9,0.08505973]
[1724117124536,6.75475,2663.3,2662.9,0.08505973]
[1724117125179,6.75475,2663.3,2662.6,9.8629]
[1724117125412,6.75475,2663.3,2663.0,0.08433069]
[1724117125674,6.19538,2663.2,2663.1,0.08427963]
[1724117125874,2.4405,2663.2,2662.6,7.38]
[1724117126051,2.4405,2663.2,2663.1,0.08427963]
[1724117126369,2.4405,2663.2,2662.6,7.38]
[1724117126574,2.4405,2663.2,2663.1,0.08427963]
[1724117126770,6.19539,2663.2,2662.6,7.38]
[1724117127077,3.75502,2663.1,2662.6,7.38]
[1724117127276,3.75516,2663.0,2662.6,7.38]
[1724117127749,3.75513,2663.1,2662.6,7.38]
[1724117128146,3.75525,2663.0,2662.6,7.38]
[1724117128353,3.75525,2663.0,2662.7,0.08448387]
[1724117128777,3.75531,2662.9,2662.7,0.08448387]
[1724117128966,3.75513,2663.1,2662.7,0.08448387]
[1724117129213,6.75478,2663.3,2662.7,0.08448387]
[1724117129423,6.75478,2663.3,2662.4,2.4829]
[1724117129716,6.75478,2663.3,2662.5,1.53629]
[1724117129876,6.75478,2663.3,2662.5,1.62087601]
[1724117130379,10.50961,2663.3,2662.5,1.62087601]
[1724117130595,6.75478,2663.3,2662.5,1.62087601]
[1724117132798,6.75478,2663.3,2662.6,2.4518]
[1724117133131,6.75478,2663.3,2662.7,1.04178169]
[1724117136693,10.50961,2663.3,2662.7,1.04178169]
[1724117136896,6.75478,2663.3,2662.7,0.63451409]
[1724117137947,3.75489,2663.2,2662.7,0.63451409]
[1724117138235,3.75544,2662.8,2662.7,0.08451409]
[1724117138440,3.7553,2662.9,2662.3,9.7193]
[1724117138598,3.7553,2662.9,2662.7,0.08447633]
[1724117138798,3.7553,2662.9,2662.3,9.7193]
[1724117138993,3.7553,2662.9,2662.4,0.08462955]
[1724117144476,6.75511,2663.1,2662.6,2.2848]
[1724117144477,3.0,2663.1,2662.6,2.2848]
[1724117144777,3.75408,2663.8,2662.7,3.75544]
[1724117144778,2.2654,2663.8,2662.7,3.75544]
[1724117144992,4.13409006,2664.0,2662.9,2.3858]
[1724117144993,0.38033006,2664.0,2662.9,2.3858]
[1724117145163,3.7537,2664.1,2663.1,2.3858]
[1724117145486,3.7537,2664.1,2663.2,3.02006422]
[1724117146890,6.75375,2664.0,2663.2,3.02006422]
[1724117148881,6.75375,2664.0,2663.3,2.3858]
[1724117149080,6.75375,2664.0,2663.3,2.46959457]
[1724117149284,6.75375,2664.0,2663.4,0.30195946]
[1724117149485,6.75375,2664.0,2663.4,0.38574613]
[1724117150906,6.75375,2664.0,2663.4,0.30195946]
[1724117151070,6.75375,2664.0,2663.3,2.3858]
[1724117151265,6.75375,2664.0,2663.5,0.08373563]
[1724117151505,6.75375,2664.0,2663.3,2.3858]
[1724117151738,6.75375,2664.0,2663.6,0.08366734]
[1724117151889,6.75375,2664.0,2663.3,2.3858]
[1724117152098,6.75375,2664.0,2663.7,0.08361631]
[1724117152306,6.75375,2664.0,2663.4,0.29358]
[1724117152499,6.75375,2664.0,2663.8,0.08356528]
[1724117152670,6.75375,2664.0,2663.3,2.3858]
[1724117152992,6.75375,2664.0,2663.9,0.08351426]
[1724117153168,6.75375,2664.0,2663.3,2.3858]
[1724117153370,6.49053006,2664.4,2663.5,2.3432]
[1724117153572,0.38033006,2664.4,2663.7,2.3432]
[1724117153766,0.38033006,2664.4,2663.8,0.07507034]
[1724117154271,0.38033006,2664.4,2663.7,2.3432]
[1724117154505,3.75348,2664.2,2663.9,0.08347112]
[1724117154809,3.75341,2664.3,2663.7,2.3432]
[1724117155129,3.75341,2664.3,2663.8,0.08343587]
[1724117155501,3.75349,2664.2,2663.8,0.08343587]
[1724117156298,3.75361,2664.1,2663.8,0.08343587]
[1724117156503,4.362901,2664.1,2663.5,9.8046]
[1724117156699,4.362901,2664.1,2663.9,0.08338485]
[1724117156902,4.362911,2664.1,2663.5,9.8046]
[1724117157190,3.75362,2664.1,2664.0,0.08333383]
[1724117157498,3.75375,2664.0,2663.5,9.8046]
[1724117157710,7.50732,2664.1,2663.5,9.8046]
[1724117158035,3.75362,2664.1,2663.5,9.8046]
[1724117158333,3.75362,2664.1,2663.6,0.08353793]
[1724117158541,0.609292,2664.0,2663.6,0.08353793]
[1724117159298,3.75389,2663.9,2663.6,0.08353793]
[1724117159502,3.75417,2663.7,2663.6,0.08353793]
[1724117160654,10.50834,2663.7,2663.6,0.08353793]
[1724117160801,3.75502,2663.1,2663.0,7.38]
[1724117161003,3.75518,2663.0,2662.5,7.38]
[1724117161198,9.77256,2663.2,2662.5,7.38]
[1724117161402,6.01759,2663.2,2662.5,7.38]
[1724117161598,3.75489,2663.2,2662.5,10.33323]
[1724117162967,6.75441,2663.6,2662.6,2.2623]
[1724117163197,6.75441,2663.6,2662.7,0.55]
[1724117163492,3.75454,2663.5,2662.7,0.55]
[1724117163636,3.0,2663.4,2662.8,2.4488]
[1724117163837,3.0,2663.6,2662.9,0.84988]
[1724117165201,6.75433,2663.6,2662.9,0.84988]
[1724117165490,6.75433,2663.6,2662.9,0.55]
[1724117165794,6.01486,2663.9,2663.0,2.4023]
[1724117165942,3.75396,2663.9,2663.0,2.4023]
[1724117166139,4.13401006,2664.1,2663.2,2.3445]
[1724117166340,3.75368,2664.1,2663.3,0.55]
[1724117166587,3.75341,2664.3,2663.4,0.28945]
[1724117166820,3.75341,2664.3,2663.6,2.3445]
[1724117167192,3.75312,2664.5,2663.7,0.07507445]
[1724117167347,7.50572,2664.7,2663.8,0.6250671]
[1724117167912,3.75283,2664.7,2663.8,0.6250671]
[1724117168108,3.75341,2664.3,2663.6,2.3445]
[1724117168278,7.50627,2664.5,2663.6,2.3445]
[1724117168653,3.75365,2664.1,2663.4,0.28945]
[1724117168857,6.18602,2664.3,2663.5,0.55]
[1724117170090,9.93945,2664.3,2663.5,0.55]
[1724117170590,3.75348,2664.2,2663.5,0.55]
[1724117170890,3.75362,2664.1,2663.5,0.55]
[1724117171043,3.75362,2664.1,2663.4,0.28945]
[1724117171243,6.18599,2664.3,2663.4,0.28945]
[1724117171456,3.75339,2664.3,2663.4,0.28945]
[1724117172043,3.75347,2664.2,2663.4,0.28945]
[1724117172448,4.13346006,2664.5,2663.5,3.0404]
[1724117172449,3.75334,2664.3,2663.5,3.0404]
[1724117172650,3.75334,2664.3,2663.5,3.373385]
[1724117173283,3.75334,2664.3,2663.6,0.08034902]
[1724117174086,7.88663006,2664.5,2663.6,0.08034902]
[1724117174301,3.0,2664.4,2663.7,0.55]
[1724117174503,3.0,2664.4,2663.7,0.9503734]
[1724117174706,3.0,2664.4,2663.7,1.03067139]
[1724117174913,5.3501,2664.3,2663.7,0.08029799]
[1724117175102,5.3501,2664.3,2663.1,12.26]
[1724117175103,3.7537,2664.1,2663.5,2.4378]
[1724117175258,3.75383,2664.0,2663.3,2.4378]
[1724117175459,7.50768,2664.0,2663.3,2.4378]
[1724117175723,3.75391,2663.9,2663.3,4.64558]
[1724117175879,3.75391,2663.9,2663.4,0.08043818]
[1724117176388,7.5077,2664.0,2663.4,0.08043818]
[1724117176935,3.75439,2663.6,2663.4,0.08043818]
[1724117177074,3.75445,2663.5,2663.0,2.4378]
[1724117177273,3.75439,2663.6,2663.5,0.08038714]
[1724117177613,3.980759,2663.6,2662.9,19.89]
[1724117177774,6.05384,2663.3,2662.9,19.89]
[1724117178130,3.0,2663.3,2662.9,19.89]
[1724117178274,3.0,2663.4,2662.9,19.89]
[1724117178482,6.7546,2663.4,2662.9,19.89]
[1724117178708,3.75474,2663.3,2662.9,19.89]
[1724117178907,3.0,2663.3,2662.9,19.89]
[1724117179498,3.0,2663.5,2662.9,19.89]
[1724117180580,6.75448,2663.5,2662.9,19.89]
[1724117180785,3.75469,2663.4,2662.9,19.89]
[1724117181123,6.75474,2663.3,2662.9,19.89]
[1724117181627,10.50948,2663.3,2662.9,19.89]
[1724117181799,3.7551,2663.1,2662.5,9.8178]
[1724117182051,3.7551,2663.1,2662.5,7.38]
[1724117182380,3.75572,2662.6,2662.5,7.38]
[1724117182543,11.803494,2662.6,2662.5,7.38]
[1724117183433,3.75626,2662.3,2661.9,7.38]
[1724117183690,4.292054,2662.6,2661.7,2.4084]
[1724117183691,3.75636,2662.2,2661.7,2.4084]
[1724117183997,7.51219,2662.4,2661.7,2.4084]
[1724117184135,6.75581,2662.6,2661.7,2.4084]
[1724117184512,3.75533,2662.9,2661.9,2.4617]
[1724117184641,3.75533,2662.9,2661.9,9.8417]
[1724117184983,3.0,2662.8,2661.9,9.8417]
[1724117185132,3.75533,2662.9,2662.0,0.55]
[1724117185333,3.75533,2662.9,2662.1,1.03917]
[1724117185334,7.51072,2662.9,2662.1,1.03917]
[1724117185584,5.5483,2663.1,2662.1,1.03917]
[1724117185585,9.30342,2663.1,2662.1,1.03917]
[1724117185891,3.0,2663.0,2662.2,3.0117]
[1724117186050,3.75477,2663.3,2662.2,3.0117]
[1724117186248,3.75477,2663.3,2662.4,2.4769]
[1724117186446,3.75477,2663.3,2662.5,0.55]
[1724117187490,3.0,2663.2,2662.5,0.55]
[1724117188388,3.0,2663.2,2662.6,0.08145348]
[1724117188939,6.75491,2663.2,2662.6,0.08145348]
[1724117189243,8.054568,2663.2,2662.6,0.08145348]
[1724117189612,8.054568,2663.2,2662.4,2.4769]
[1724117189819,8.054568,2663.2,2662.7,0.08140241]
[1724117190019,3.75523,2663.0,2662.4,2.4769]
[1724117190306,3.75516,2663.0,2662.4,2.4769]
[1724117190514,3.75516,2663.0,2662.5,0.08167678]
[1724117191958,10.50997,2663.2,2662.5,0.08167678]
[1724117192163,3.75503,2663.1,2662.5,0.08167678]
[1724117192665,3.75518,2663.0,2662.5,0.08167678]
[1724117192976,3.75503,2663.1,2662.5,0.08167678]
[1724117193777,3.0,2663.2,2662.5,0.08167678]
[1724117193974,3.0,2663.3,2662.6,2.9899]
[1724117194176,6.75475,2663.3,2662.7,0.38890458]
[1724117194417,6.7782613,2663.3,2662.7,0.30715768]
[1724117194997,6.7782613,2663.3,2662.8,0.08169584]
[1724117195191,6.23625,2663.2,2662.8,0.08169584]
[1724117195408,6.23625,2663.2,2662.6,0.55]
[1724117195616,2.4813,2663.2,2662.4,0.55]
[1724117195816,6.7782613,2663.3,2662.7,0.0817469]
[1724117196103,6.7782613,2663.3,2662.4,0.55]
[1724117196310,6.7782613,2663.3,2662.8,0.08169584]
[1724117196698,6.7782613,2663.3,2662.6,2.3789]
[1724117196901,3.75489,2663.2,2662.5,0.29899]
[1724117197087,3.75523,2663.0,2662.7,0.0817469]
[1724117197286,3.75523,2663.0,2662.6,0.08179797]
[1724117197527,3.75523,2663.0,2662.8,0.08169584]
[1724117197685,3.75523,2663.0,2662.7,0.0817469]
[1724117198135,7.51052,2663.0,2662.3,9.7589]
[1724117198298,9.7761,2662.9,2662.8,0.08169584]
[1724117198504,3.75569,2662.7,2662.3,7.38]
[1724117198708,3.75569,2662.7,2662.0,7.38]
[1724117199016,3.75569,2662.7,2662.1,0.96578]
[1724117200135,7.51133,2662.7,2662.1,0.96578]
[1724117200429,3.75566,2662.7,2662.1,0.96578]
[1724117200641,3.75566,2662.7,2662.0,7.38]
[1724117200884,6.0209,2662.9,2662.0,7.38]
[1724117201024,3.75581,2662.6,2662.0,7.38]
[1724117201589,3.75555,2662.8,2662.0,7.38]
[1724117201794,3.75559,2662.7,2662.1,0.96578]
[1724117202410,6.0209,2662.9,2662.1,0.96578]
[1724117203024,3.75511,2663.1,2662.2,2.4987]
[1724117203333,6.75518,2663.0,2662.2,2.4987]
[1724117203539,2.4225,2663.2,2662.2,2.4987]
[1724117203540,3.0,2662.9,2662.3,0.896448]
[1724117203709,3.0,2662.9,2662.3,0.9783992]
[1724117203909,3.75503,2663.1,2662.3,0.9783992]
[1724117203910,3.0,2663.0,2662.3,0.9783992]
[1724117204303,3.0,2663.0,2662.4,0.34770992]
[1724117204655,3.0,2663.0,2662.5,0.08191794]
[1724117205499,9.17738,2663.2,2662.5,0.08191794]
[1724117205699,3.0,2663.2,2662.5,0.08191794]
[1724117205998,0.0235113,2663.3,2662.6,2.8495]
[1724117206198,0.0235113,2663.3,2662.7,0.29314179]
[1724117206426,0.0235113,2663.3,2662.8,0.08170444]
[1724117206813,0.0235113,2663.3,2662.7,0.29314179]
[1724117207013,0.0235113,2663.3,2662.9,0.08165338]
[1724117207343,0.0235113,2663.3,2663.0,2.37459198]
[1724117207537,0.0235113,2663.3,2663.1,0.2374592]
[1724117208045,0.0235113,2663.3,2663.2,0.08142702]
[1724117210345,0.0235113,2663.3,2663.2,0.15651856]
[1724117210507,0.0235113,2663.3,2663.2,0.08142702]
[1724117213451,0.0235113,2663.3,2662.6,2.4384]
[1724117213654,0.0235113,2663.3,2663.2,0.08123329]
[1724117213812,0.0235113,2663.3,2662.7,0.54384]
[1724117214012,0.0235113,2663.3,2663.2,0.08123329]
[1724117214237,0.0235113,2663.3,2662.7,0.54384]
[1724117214551,0.0235113,2663.3,2663.2,0.08123329]
[1724117214714,0.0235113,2663.3,2662.8,0.55]
[1724117214912,0.0235113,2663.3,2663.2,0.08123329]
[1724117215114,0.0235113,2663.3,2662.8,0.903224]
[1724117215350,0.0235113,2663.3,2663.2,0.08123329]
[1724117215609,0.0235113,2663.3,2663.2,0.08130217]
[1724117215816,0.0235113,2663.3,2662.8,0.55]
[1724117216165,0.0235113,2663.3,2662.6,2.4384]
[1724117216315,0.0235113,2663.3,2662.6,2.71701099]
[1724117216718,0.0235113,2663.3,2662.7,0.08129912]
[1724117217933,0.0235113,2663.3,2662.8,0.55]
[1724117218316,0.0235113,2663.3,2662.9,0.08128309]
[1724117220360,2.2982,2663.2,2662.9,0.08128309]
[1724117220571,2.90583413,2663.2,2662.9,0.08128309]
[1724117220862,2.90583413,2663.2,2663.0,0.08115024]
[1724117221212,2.90583413,2663.2,2662.4,7.38]
[1724117221411,2.2982,2663.2,2662.5,0.08140556]
[1724117221816,2.2982,2663.2,2662.6,0.55]
[1724117222267,2.2982,2663.2,2662.7,0.08137661]
[1724117223614,6.05308,2663.2,2662.7,0.08137661]
[1724117223821,2.2982,2663.2,2662.7,0.08137661]
[1724117225144,3.0,2663.5,2662.7,0.08137661]
[1724117225353,5.2637,2663.6,2662.8,0.55]
[1724117225553,5.2637,2663.6,2662.7,2.87359227]
[1724117225763,5.2637,2663.6,2662.9,0.08127018]
[1724117225921,5.2637,2663.6,2662.8,0.08132124]
[1724117226254,2.2637,2663.6,2662.9,0.08127018]
[1724117227249,2.2637,2663.6,2663.0,2.2676]
[1724117227520,5.4424,2663.9,2663.1,0.55]
[1724117227733,2.4424,2663.9,2663.1,0.63115944]
[1724117229460,3.0,2664.1,2663.1,0.63115944]
[1724117229634,5.4752,2664.1,2663.2,1.40338294]
[1724117229824,5.4752,2664.1,2663.1,0.63115944]
[1724117230018,3.0,2664.0,2663.1,0.63115944]
[1724117230219,2.4752,2664.1,2663.1,0.63115944]
[1724117230566,6.22893,2664.1,2663.1,0.63115944]
[1724117230747,6.75382,2664.0,2663.1,0.63115944]
[1724117230922,6.75382,2664.0,2663.1,1.65903538]
[1724117233036,3.0,2664.0,2663.1,1.65903538]
[1724117233350,5.4752,2664.1,2663.1,1.65903538]
[1724117233730,3.75407,2663.8,2663.1,0.08115944]
[1724117233927,9.91047,2664.0,2663.1,0.08115944]
[1724117234140,6.15658,2664.0,2663.1,0.08115944]
[1724117234563,6.15656,2664.0,2663.1,0.08115944]
[1724117234775,7.447571,2664.0,2663.1,1.07441538]
[1724117234976,7.447571,2664.0,2663.2,0.55]
[1724117235464,7.447571,2664.0,2663.3,0.08092821]
[1724117236835,11.201411,2664.0,2663.3,0.08092821]
[1724117237031,3.75399,2663.9,2663.3,0.08092821]
[1724117237227,1.1201541,2663.8,2663.3,0.08092821]
[1724117237460,1.1201541,2663.8,2663.0,9.8514]
[1724117237642,1.1201541,2663.8,2662.5,4.52911491]
[1724117237643,6.03125,2663.5,2663.4,0.08073511]
[1724117237846,3.75488,2663.2,2662.5,0.77334491]
[1724117238369,2.2768,2663.4,2662.6,0.08114355]
[1724117238604,5.2768,2663.4,2662.6,0.4083924]
[1724117239159,2.2768,2663.4,2662.7,2.418]
[1724117239601,2.2768,2663.4,2662.8,0.08129971]
[1724117240500,6.75425,2663.7,2662.8,0.08129971]
[1724117240501,3.0,2663.7,2663.0,2.418]
[1724117240701,2.2768,2663.9,2663.1,0.8468]
[1724117240906,2.2768,2663.9,2663.1,1.00303613]
[1724117241201,6.03073,2663.9,2663.1,0.92794654]
[1724117241502,3.0,2663.8,2663.1,0.92794654]
[1724117241879,2.2768,2663.9,2663.1,0.92794654]
[1724117242587,3.0,2664.0,2663.2,2.4844]
[1724117242905,4.23083439,2664.5,2663.1,0.92794654]
[1724117242906,2.268,2664.5,2663.4,2.4844]
[1724117243090,2.268,2664.5,2663.5,0.55]
[1724117243291,2.268,2664.5,2663.6,0.678888]
[1724117243463,6.02106,2664.5,2663.7,0.55]
[1724117243668,6.02106,2664.5,2663.7,0.08062935]
[1724117243979,6.02106,2664.5,2663.4,2.4844]
[1724117244164,6.02106,2664.5,2663.5,0.6306109]
[1724117244503,3.0,2664.4,2663.5,0.6306109]
[1724117244657,6.7532,2664.4,2663.6,0.31150109]
[1724117245100,3.0,2664.4,2663.7,0.08050454]
[1724117247593,6.7532,2664.4,2663.7,0.08050454]
[1724117247817,3.75336,2664.3,2663.7,0.08050454]
[1724117248120,5.2808,2664.2,2663.7,0.08050454]
[1724117248323,0.903416,2664.1,2663.7,0.08050454]
[1724117248476,3.75375,2664.0,2663.2,9.694]
[1724117248680,3.75375,2664.0,2663.8,0.08022976]
[1724117248993,7.50763,2664.0,2663.2,9.694]
[1724117249318,6.12085,2663.8,2663.3,0.08050644]
[1724117249676,6.5909552,2663.8,2663.2,9.694]
[1724117250013,6.5909552,2663.8,2663.3,0.08054517]
[1724117250184,6.5909552,2663.8,2663.2,7.38]
[1724117250386,6.21155,2664.0,2663.3,0.08054517]
[1724117251019,2.4578,2664.0,2663.3,0.08054517]
[1724117251222,5.4578,2664.0,2663.3,0.08054517]